[Event "FRA-ch Teams Top 16-Bas 2022"]
[Site "Chartres"]
[Date "2022.06.18"]
[Round "10.19"]
[White "Visakh N R"]
[Black "Favarel, Julien"]
[Result "1-0"]
[ECO "B07"]
[WhiteElo "2506"]
[BlackElo "2312"]
[Annotator "TA"]
[PlyCount "51"]
[EventDate "2022.06.16"]
[EventType "team-tourn"]
[EventCountry "FRA"]
[SourceTitle "playchess.com"]
[Source "ChessBase"]
[SourceQuality "1"]
[TimeControl "40/5400+30:1800+30"]

{[%evp 16,51,0,4,16,13,20,33,39,28,64,77,176,147,159,136,154,137,199,199,210,195,200,192,207,131,214,207,306,285,581,597,585,575,568,432,597,587]} 1. d4 {[%emt 0:00:06]} Nf6 {[%emt 0:00:04]} 2. Nf3 {[%emt 0:00:10]} g6 {[%emt 0:00:06]} 3. Nbd2 {[%emt 0:00:06]} Bg7 {[%emt 0:01:45]} 4. e4 {[%emt 0:00:08]} d6 {[%emt 0:00:52]} 5. Bb5+ {[%emt 0:00:06]} c6 {[%emt 0:00:36]} 6. Bd3 {[%emt 0:00:03]} O-O {[%emt 0:00:30]} 7. O-O {[%emt 0:00:03]} c5 {[%emt 0:00:56]} 8. c3 {[%emt 0:00:07][%cal Bc2c3,Bc3d4,Bd4d5][%mdl 32]} cxd4 {[%emt 0:00:49]} 9. cxd4 {[%emt 0:00:02]} Nc6 {[%emt 0:00:42] B07: Pirc Defence: Miscellaneous Systems.} 10. Re1 {[%emt 0:02:03]} Nd7 {[%emt 0:09:50]} 11. Nb3 {[%emt 0:04:22] [#]} e5 $146 {[%emt 0:07:12][%cal Re5d4] White is slightly better.} ({Predecessor:} 11... a5 12. a4 Nf6 13. Bd2 d5 14. e5 Ne4 15. Bxe4 dxe4 16. Rxe4 Qd5 17. Rh4 f6 18. exf6 Bxf6 {0-1 (43) Salimova,N (2395)-Liang,A (2592) chess24.com INT 2021}) 12. Bg5 {[%emt 0:11:43]} Qe8 {[%emt 0:02:59][%cal Rc6d4]} 13. d5 {[%emt 0:03:40]} Nd4 {[%emt 0:05:00]} (13... Ne7 $16) 14. Nbxd4 {[%emt 0:03:54]} exd4 {[%emt 0:00:05]} 15. Bf1 {[%emt 0:00:12] 0x0.00086139fc67dp-1022s more active pieces. The black rooks are badly placed.} Nc5 {[%emt 0:06:15] [#]} 16. Bf4 $1 {[%emt 0:06:33]} ({Don't do} 16. Nxd4 $6 Qe5 17. Be3 Nxe4 $14) 16... Qd8 {[%emt 0:05:39] [#]} (16... Qe7 $16) 17. b4 $1 $18 {[%emt 0:03:44]} (17. Nxd4 $6 Qf6 18. Be3 Nxe4 $14) 17... Na6 {[%emt 0:00:27]} 18. Bxa6 {[%emt 0:00:40]} ({Resist} 18. Nxd4 $6 Nxb4 19. Rb1 Bxd4 $16) 18... bxa6 {[%emt 0:00:06]} 19. Nxd4 {[%emt 0:00:08][%cal Bf3d4,Bd4c6,Bc6a5,Ba5c4][%mdl 32]} Re8 {[%emt 0:04:31]} 20. Qd2 {[%emt 0:07:29]} Bb7 {[%emt 0:05:57]} (20... Qb6 $16) 21. Rac1 {[%emt 0:00:54]} Qf6 {[%emt 0:03:44]} (21... Qd7 {was necessary.} 22. f3 Rac8) 22. Nc6 {[%emt 0:00:33] Black must now prevent Bg5.} h5 $2 {[%emt 0:01:09]} (22... Bf8 {was called for.} 23. a3 Rac8) 23. Bg5 {[%emt 0:05:25] White is clearly winning.} Qb2 {[%emt 0:00:22]} 24. Rc2 {[%emt 0:00:08]} Qa3 {[%emt 0:00:29]} 25. Na5 {[%emt 0:00:05]} Bc8 {[%emt 0:00:41]} 26. Nc4 {[%emt 0:00:14][%csl LRa3,LRd6] Black got outplayed after the opening.  Weighted Error Value: White=0.15 (very precise) /Black=0.63} 1-0

[Event "FRA-ch Teams Top 16-Bas 2022"]
[Site "Chartres"]
[Date "2022.06.18"]
[Round "10.20"]
[White "Ternault, Mathieu"]
[Black "Lazarev, Vladimir"]
[Result "1/2-1/2"]
[ECO "D02"]
[WhiteElo "2367"]
[BlackElo "2491"]
[Annotator "TA"]
[PlyCount "21"]
[EventDate "2022.06.16"]
[EventType "team-tourn"]
[EventCountry "FRA"]
[SourceTitle "playchess.com"]
[Source "ChessBase"]
[SourceQuality "1"]
[TimeControl "40/5400+30:1800+30"]

{[%evp 15,21,0,0,0,0,-30,-30,-52]} 1. d4 {[%emt 0:00:10]} d5 {[%emt 0:00:42]} 2. Nf3 {[%emt 0:00:06]} Nf6 {[%emt 0:01:47]} 3. Bf4 {[%emt 0:01:15]} c5 {[%emt 0:00:40]} 4. e3 {[%emt 0:00:32][%cal Be2e3,Be3e4,Be4e5][%mdl 32]} Nc6 {[%emt 0:00:45]} 5. Nbd2 {[%emt 0:01:03]} e6 {[%emt 0:02:03]} 6. c3 {[%emt 0:01:13]} Bd6 {[%emt 0:00:19]} 7. Bg3 {[%emt 0:01:20]} O-O {[%emt 0:00:34]} 8. Bd3 {[%emt 0:00:07]} b6 {[%emt 0:00:53]} 9. e4 {[%emt 0:01:47] [#] Black must now prevent e5. 9.Qe2 is setting a new trend. D02: 1 d4 d5 2 Nf3 sidelines, including 2...Nf6 3 g3 and 2...Nf6 3 Bf4.} Be7 {[%emt 0:01:59]} 10. e5 {[%emt 0:01:07]} Nh5 {[%emt 1:25:48] [#]} 11. Nb1 $146 {Weighted Error Value: White=0.12 (very precise) /Black=0.00 (flawless)} ({Predecessor:} 11. Ng5 Bxg5 12. Qxh5 h6 13. Nf3 cxd4 14. h4 Be7 15. Bf4 f5 16. Bxh6 Qe8 17. Qxe8 Rxe8 {½-½ (57) Firouzja,A (2759)-Svidler,P (2714) Paris 2021}) 1/2-1/2

[Event "FRA-ch Teams Top 16-Bas 2022"]
[Site "Chartres"]
[Date "2022.06.18"]
[Round "10.21"]
[White "Bailet, Pierre"]
[Black "Fantinel, Thibault"]
[Result "1/2-1/2"]
[ECO "B46"]
[WhiteElo "2509"]
[BlackElo "2388"]
[Annotator "TA"]
[PlyCount "48"]
[EventDate "2022.06.16"]
[EventType "team-tourn"]
[EventCountry "FRA"]
[SourceTitle "playchess.com"]
[Source "ChessBase"]
[SourceQuality "1"]
[TimeControl "40/5400+30:1800+30"]

{[%evp 18,48,0,0,0,0,0,0,19,7,35,32,25,15,36,25,15,17,25,-10,21,26,31,5,16,0,0,0,0,0,15,0,15]} 1. e4 {[%emt 0:00:06]} c5 {[%emt 0:00:26]} 2. Nc3 {[%emt 0:00:17]} Nc6 {[%emt 0:00:25]} 3. Nge2 {[%emt 0:00:15]} e6 {[%emt 0:01:10]} 4. d4 {[%emt 0:00:26]} cxd4 {[%emt 0:00:03]} 5. Nxd4 {[%emt 0:00:06]} Qc7 {[%emt 0:00:02]} 6. f4 {[%emt 0:00:11]} a6 {[%emt 0:01:30]} 7. Nxc6 {[%emt 0:00:18]} bxc6 {[%emt 0:00:03]} 8. Bd3 {[%emt 0:00:42]} d5 {[%emt 0:00:11]} 9. O-O {[%emt 0:00:32]} Nf6 {[%emt 0:00:12]} 10. Qe2 {[%emt 0:01:02]} Be7 {[%emt 0:00:16] B46: Sicilian: Taimanov: 5 Nc3 a6.} 11. Bd2 {[%emt 0:04:28]} O-O {[%emt 0:00:37]} 12. b3 {[%emt 0:01:19]} Re8 {[%emt 0:18:05] [#]} 13. Rae1 $146 {[%emt 0:05:26]} ({Predecessor:} 13. Kh1 Bb7 14. Rae1 Bf8 15. e5 Nd7 16. Rf3 g6 17. h4 c5 18. Rg3 Bg7 19. h5 {1-0 (43) Delgado Ramirez,N (2613)-Cori Quispe,K (2390) Medellin 2017}) 13... Bb7 {[%emt 0:03:14]} 14. e5 {[%emt 0:09:11]} Nd7 {[%emt 0:00:12]} 15. Na4 {[%emt 0:00:28] f5 is the strong threat.} Nc5 {[%emt 0:06:03]} 16. Nxc5 {[%emt 0:02:33]} Bxc5+ {[%emt 0:00:03]} 17. Kh1 {[%emt 0:00:13]} g6 {[%emt 0:04:32]} 18. c4 {[%emt 0:20:19]} dxc4 {[%emt 0:01:42]} 19. Bxc4 {[%emt 0:00:07][%cal Of4f5]} Bf8 {[%emt 0:00:36]} 20. Be3 {[%emt 0:01:54][%cal Of4f5]} c5 {[%emt 0:02:12] The position is equal.} 21. Rd1 {[%emt 0:03:43]} Qc6 {[%emt 0:03:11]} 22. Qf3 {[%emt 0:00:23]} Qxf3 {[%emt 0:04:07]} 23. gxf3 {[%emt 0:00:08]} Red8 {[%emt 0:00:07]} 24. Kg2 {[%emt 0:02:41]} Be7 {[%emt 0:00:21] An interesting draw.  Weighted Error Value: White=0.09 (flawless) /Black=0.07 (flawless)} 1/2-1/2

[Event "FRA-ch Teams Top 16-Bas 2022"]
[Site "Chartres"]
[Date "2022.06.18"]
[Round "10.22"]
[White "Boukhris-Ferre, Yacine"]
[Black "Migot, Tangi"]
[Result "1-0"]
[ECO "B22"]
[WhiteElo "2183"]
[BlackElo "2353"]
[Annotator "TA"]
[PlyCount "81"]
[EventDate "2022.06.16"]
[EventType "team-tourn"]
[EventCountry "FRA"]
[SourceTitle "playchess.com"]
[Source "ChessBase"]
[SourceQuality "1"]
[TimeControl "40/5400+30:1800+30"]

{[%evp 9,81,-39,-15,-17,-25,-14,0,0,12,0,48,40,56,56,47,71,129,133,122,103,104,127,119,121,433,432,539,533,679,669,594,577,943,942,913,935,893,928,913,891,820,810,29952,29953,2425,1803,29957,29960,29959,29960,29962,29965,29959,1892,1837,1679,1661,867,1156,261,582,0,1154,1121,29968,29970,29973,29974,29973,1606,29977,29978,29973,29965]} 1. e4 {[%emt 0:00:40]} c5 {[%emt 0:00:07]} 2. Nf3 {[%emt 0:00:03]} e6 {[%emt 0:00:18]} 3. c3 {[%emt 0:00:19]} Nf6 {[%emt 0:01:03]} 4. e5 {[%emt 0:00:26]} Nd5 {[%emt 0:00:08]} 5. b4 {[%emt 0:00:28]} b6 {[%emt 0:05:51]} 6. bxc5 {[%emt 0:00:06] B22: Sicilian: 2 c3.} bxc5 {[%emt 0:00:07] [#]} 7. Bd3 $146 {[%emt 0:00:50]} ({Predecessor:} 7. Na3 d6 8. Bb5+ Bd7 9. Bxd7+ Nxd7 10. Nc4 dxe5 11. Nfxe5 N5b6 12. Qf3 Nxe5 13. Nxe5 {½-½ (37) Cicak,S (2534)-Rublevsky,S (2686) Mainz 2004}) 7... Bb7 {[%emt 0:07:27]} 8. Be4 {[%emt 0:03:51] The position is equal.} Qc7 {[%emt 0:03:04]} 9. O-O {[%emt 0:02:35]} d6 {[%emt 0:06:24]} (9... c4 $11) 10. Na3 $14 {[%emt 0:13:07] Hoping for c4.} dxe5 {[%emt 0:17:57]} 11. Nb5 $1 {[%emt 0:06:09]} Qc8 {[%emt 0:00:29]} 12. Nxe5 {[%emt 0:14:45] Threatens to win with Qf3.} Nc6 {[%emt 0:00:37]} ({Black should play} 12... Be7) 13. Bxd5 $16 {[%emt 0:05:30] White is much more active. The black rooks are badly placed.} Nxe5 {[%emt 0:01:45]} 14. Bxb7 {[%emt 0:00:53]} Qxb7 {[%emt 0:00:06] [#]} 15. Rb1 {[%emt 0:03:13]} Qd7 {[%emt 0:01:44] Against Nd6+} 16. d4 $36 {[%emt 0:01:15][%mdl 2048] White is on the roll.} Nc6 {[%emt 0:07:38][%mdl 8192]} (16... a6 $16 {is a better chance.}) 17. d5 $18 {[%emt 0:06:37]} exd5 {[%emt 0:01:54]} 18. Bf4 {[%emt 0:01:13]} ({Worse is} 18. Bg5 Be7 19. Bf4 Rc8 $17) 18... Rc8 {[%emt 0:00:44]} 19. Re1+ {[%emt 0:00:27]} Kd8 {[%emt 0:03:19]} 20. Qf3 {[%emt 0:06:40] Strongly threatening Rbd1.} a6 {[%emt 0:01:01] [#]} 21. Rbd1 $1 {[%emt 0:02:40]} d4 {[%emt 0:08:04] [#]} 22. cxd4 $1 {[%emt 0:01:01]} axb5 {[%emt 0:03:09]} 23. dxc5 {[%emt 0:00:35]} Nd4 {[%emt 0:00:05] [#]} 24. Rxd4 $1 {[%emt 0:01:55][%mdl 576] Clearance} Qxd4 {[%emt 0:05:42]} 25. Rd1 {[%emt 0:00:15]} Qxd1+ {[%emt 0:00:06]} 26. Qxd1+ {[%emt 0:00:01]} Ke8 {[%emt 0:00:08]} 27. Qe2+ {[%emt 0:01:43]} Kd8 {[%emt 0:00:05]} 28. Qd3+ {[%emt 0:00:24]} Ke7 {[%emt 0:12:08]} 29. Bd6+ {[%emt 0:01:05]} Ke8 {[%emt 0:01:39]} 30. Qxb5+ {[%emt 0:00:06]} Kd8 {[%emt 0:00:05]} 31. Qb6+ {[%emt 0:00:21]} (31. Bxf8 $142 Rxf8 32. Qd3+ Ke8 33. Qe4+ Kd7 34. Qd5+ Ke7 35. Qd6+ Ke8 36. c6 Rxc6 37. Qxc6+ Ke7 38. Qc5+ Ke8 39. Qe5+ Kd8 40. Qg5+ Kd7 41. Qxg7) 31... Ke8 {[%emt 0:01:00]} 32. Qb7 {[%emt 0:05:56][%cal Rb7c8]} Rd8 {[%emt 0:00:08]} 33. Qb5+ {[%emt 0:04:57]} Rd7 {[%emt 0:00:12]} 34. Qb8+ {[%emt 0:00:47]} Rd8 {[%emt 0:00:07]} 35. Qb5+ {[%emt 0:00:01]} (35. Qc7 $142 Bxd6 36. cxd6) 35... Rd7 {[%emt 0:00:04]} 36. h4 {[%emt 0:08:57]} Bxd6 {[%emt 0:07:22]} 37. cxd6 {[%emt 0:00:02][%cal Bc5d6,Bd6d7][%mdl 32]} h5 {[%emt 0:00:07]} 38. Qe5+ {[%emt 0:03:00]} Kf8 {[%emt 0:02:04]} 39. Qc3 {[%emt 0:01:10]} (39. Qc5 $142 Ke8 40. Qc8+ Rd8 41. Qc6+ Kf8 42. Qc7 Re8 43. d7 g6 44. dxe8=Q+ Kxe8 45. Qe5+ Kd7 46. Qxh8) 39... Rd8 {[%emt 0:03:28]} 40. Qc7 {[%emt 0:01:38][%cal Rc7d8]} Ra8 {[%emt 0:00:06]} 41. d7 {[%emt 0:30:27] Black did not feel at home in the position after the opening.  Weighted Error Value: White=0.31/Black=1.23} 1-0

[Event "FRA-ch Teams Top 16-Bas 2022"]
[Site "Chartres"]
[Date "2022.06.18"]
[Round "10.23"]
[White "Koch, Jean-Rene"]
[Black "Roubert, Emile"]
[Result "1-0"]
[ECO "A13"]
[WhiteElo "2441"]
[BlackElo "2027"]
[Annotator "TA"]
[PlyCount "81"]
[EventDate "2022.06.16"]
[EventType "team-tourn"]
[EventCountry "FRA"]
[SourceTitle "playchess.com"]
[Source "ChessBase"]
[SourceQuality "1"]
[TimeControl "40/5400+30:1800+30"]

{[%evp 9,81,11,15,16,14,18,18,4,10,10,9,4,11,7,0,0,4,1,11,12,29,19,14,26,29,25,22,29,31,-18,37,-4,0,-7,67,0,39,10,39,0,0,0,17,21,87,31,31,-110,18,18,18,21,53,65,44,47,79,70,162,166,207,198,200,193,202,201,210,188,1515,1526,1515,1384,29996,29997]} 1. c4 {[%emt 0:00:02]} e6 {[%emt 0:00:19]} 2. Nf3 {[%emt 0:00:22]} d5 {[%emt 0:00:16]} 3. g3 {[%emt 0:00:36]} dxc4 {[%emt 0:01:29]} 4. Qa4+ {[%emt 0:01:29]} Bd7 {[%emt 0:01:02]} 5. Qxc4 {[%emt 0:00:08]} c5 {[%emt 0:00:22]} 6. Bg2 {[%emt 0:03:06] A13: English Opening: 1...e6.} Bc6 {[%emt 0:06:43]} 7. O-O {[%emt 0:00:48]} Nf6 {[%emt 0:02:13]} 8. b3 {[%emt 0:10:42] The position is equal.} Nbd7 {[%emt 0:08:34]} 9. Bb2 {[%emt 0:01:02]} Be7 {[%emt 0:04:59]} 10. d3 {[%emt 0:11:14]} O-O {[%emt 0:06:14]} 11. Nbd2 {[%emt 0:00:42][%cal Bb1d2,Bd2c4,Bc4e5][%mdl 32]} Rc8 {[%emt 0:01:15] [#]} 12. Rad1 $146 {[%emt 0:04:35]} ({Predecessor:} 12. e4 Ng4 13. h3 Bf6 14. d4 Nh6 15. Qe2 Nb6 16. Qe3 cxd4 17. Nxd4 Bxd4 18. Bxd4 {1-0 (56) Maghsoodloo,P (2673)-Naiditsch,A (2710) Astana 2019}) 12... Qc7 {[%emt 0:08:23]} 13. Qc1 {[%emt 0:02:34]} b6 {[%emt 0:02:57]} 14. Qa1 {[%emt 0:03:11]} Qb7 {[%emt 0:01:52]} 15. e4 {[%emt 0:05:36]} Rfd8 {[%emt 0:08:22]} 16. Nc4 {[%emt 0:01:41]} Qa8 {[%emt 0:08:59]} 17. Nfe5 {[%emt 0:09:34]} Nxe5 {[%emt 0:07:13]} 18. Nxe5 {[%emt 0:00:14]} Bb7 {[%emt 0:00:12]} 19. f4 {[%emt 0:06:51]} (19. Bc3 $14) 19... Ne8 {[%emt 0:01:25]} (19... b5 $1 $11) 20. g4 {[%emt 0:05:22]} f6 {[%emt 0:01:27]} 21. Nc4 {[%emt 0:02:00]} Rd7 {[%emt 0:01:25]} (21... b5 $11 22. Na5 c4) 22. Qc1 {[%emt 0:07:51]} (22. g5 $14) 22... Rcd8 {[%emt 0:02:35]} (22... b5 $5 {[%cal Rb5c4]} 23. Na5 c4 24. bxc4 (24. Nxb7 c3 $11) 24... bxc4 25. Nxc4 Nd6 $14) 23. Qe3 {[%emt 0:00:20]} Nd6 {[%emt 0:04:12]} 24. Nxd6 {[%emt 0:10:59]} (24. g5 $5 {[%cal Rg2h3]}) 24... Bxd6 {[%emt 0:00:09]} 25. g5 {[%emt 0:02:35]} fxg5 {[%emt 0:01:52]} 26. fxg5 {[%emt 0:00:14][%cal Og5g6]} e5 {[%emt 0:06:17]} (26... Kh8 27. g6 (27. Qh3 e5 $16) 27... e5 28. Qg3 $16) (26... Rf8 $11) 27. Bh3 {[%emt 0:02:02] White is more active.} (27. Qg3 $16) 27... Re7 $14 {[%emt 0:00:12][%cal Oc5c4]} 28. g6 {[%emt 0:01:43] [#]} (28. Kg2 $14 {keeps the upper hand.}) 28... hxg6 {[%emt 0:01:22]} (28... c4 $1 $17 {aiming for ...Bc5.} 29. Kh1 (29. bxc4 $2 Bc5 $19) 29... Bc5) 29. Qg5 $11 {[%emt 0:00:13]} Bc8 $1 {[%emt 0:04:46]} ({Don't play} 29... c4 30. bxc4 Bc5+ 31. Kh1 $16) 30. Rf3 {[%emt 0:01:05]} Bxh3 {[%emt 0:01:57]} 31. Rxh3 {[%emt 0:00:05] Threatens to win with Qh4.} Re6 {[%emt 0:00:49]} 32. Qh4 {[%emt 0:00:38] White threatens Rf1 and mate.} Rf6 {[%emt 0:01:33] [#]} 33. Bc1 $1 {[%emt 0:00:33]} ({Wrong is} 33. d4 $2 cxd4 34. Bc1 d3 35. Rhxd3 (35. Bg5 $2 Bc5+ 36. Kg2 Rf2+ 37. Kg3 Rdf8 $19) 35... Bc5+ 36. Kg2 Rf2+ 37. Kg3 Rdf8 $19) 33... Be7 {[%emt 0:02:47]} (33... Qc8 $14) 34. Bg5 $40 {[%emt 0:00:19][%mdl 192] Skewer. Black is in trouble.} Qc8 {[%emt 0:00:23][%cal Of6f4]} 35. Bxf6 {[%emt 0:01:08]} Bxf6 {[%emt 0:00:05]} 36. Qh7+ {[%emt 0:01:27]} Kf7 {[%emt 0:00:12] White must now prevent ...Qg4+.} 37. Rg3 {[%emt 0:01:07] Prevents Qg4.} g5 {[%emt 0:00:12]} 38. Rf1 {[%emt 0:01:36] And now Rxg5 would win.} Ke7 $2 {[%emt 0:03:02] [#]} (38... g4 39. Qh5+ Ke7 40. Rxg4 Kd6) 39. Rxf6 $1 {[%emt 0:01:12][%mdl 512]} Kxf6 {[%emt 0:00:16]} 40. Rf3+ {[%emt 0:00:06]} Ke6 {[%emt 0:00:43]} 41. Qg6+ {[%emt 0:30:25] Weighted Error Value: White=0.20 (precise) /Black=0.44} 1-0

[Event "FRA-ch Teams Top 16-Bas 2022"]
[Site "Chartres"]
[Date "2022.06.18"]
[Round "10.24"]
[White "Gennesseaux, Gabrielle"]
[Black "Schippke, Manon"]
[Result "0-1"]
[ECO "B51"]
[WhiteElo "1794"]
[BlackElo "2072"]
[Annotator "NA RC"]
[PlyCount "74"]
[EventDate "2022.06.16"]
[EventType "team-tourn"]
[EventCountry "FRA"]
[SourceTitle "playchess.com"]
[Source "ChessBase"]
[SourceQuality "1"]
[TimeControl "40/5400+30:1800+30"]

1. e4 {[%emt 0:00:03]} c5 {[%emt 0:00:01]} 2. Nf3 {[%emt 0:00:08]} d6 {[%emt 0:00:04]} 3. Bb5+ {[%emt 0:00:10]} Nc6 {[%emt 0:00:02]} 4. O-O {[%emt 0:00:24]} Bd7 {[%emt 0:00:14]} 5. Re1 {[%emt 0:00:38]} a6 {[%emt 0:02:12]} 6. Bf1 {[%emt 0:00:24]} Bg4 {[%emt 0:00:12]} 7. c3 {[%emt 0:06:25]} e5 {[%emt 0:05:40]} 8. h3 {[%emt 0:02:43]} Bh5 {[%emt 0:00:30]} 9. d3 {[%emt 0:11:52]} Be7 {[%emt 0:02:38]} 10. Nbd2 {[%emt 0:02:21]} Nf6 {[%emt 0:02:38]} 11. Nc4 {[%emt 0:08:15]} O-O {[%emt 0:02:16]} 12. Ne3 {[%emt 0:06:37]} Re8 {[%emt 0:17:53]} 13. Nf5 {[%emt 0:02:15]} Bf8 {[%emt 0:01:08]} 14. Bg5 {[%emt 0:04:39]} h6 {[%emt 0:02:39]} 15. Bh4 {[%emt 0:05:35]} b5 {[%emt 0:10:52]} 16. g4 {[%emt 0:17:46]} Bg6 {[%emt 0:00:15]} 17. Bg2 {[%emt 0:00:45]} Bxf5 {[%emt 0:05:15]} 18. exf5 {[%emt 0:00:16]} Rc8 {[%emt 0:06:01]} 19. a4 {[%emt 0:06:23]} d5 {[%emt 0:04:13]} 20. axb5 {[%emt 0:00:35]} axb5 {[%emt 0:01:07]} 21. Nd2 {[%emt 0:02:47]} c4 {[%emt 0:09:41]} 22. dxc4 {[%emt 0:01:11]} bxc4 {[%emt 0:25:59]} 23. Ra6 {[%emt 0:04:06]} e4 {[%emt 0:00:00]} 24. Nf1 {[%emt 0:03:03]} Ne5 {[%emt 0:00:00]} 25. Bg3 {[%emt 0:09:41]} Nd3 {[%emt 0:00:00]} 26. Re2 {[%emt 0:00:26]} Nd7 {[%emt 0:00:00]} 27. Ne3 {[%emt 0:01:34]} N7c5 {[%emt 0:00:00]} 28. Ra2 {[%emt 0:00:53]} Bd6 {[%emt 0:00:00]} 29. Bxd6 {[%emt 0:01:05]} Qxd6 {[%emt 0:00:00]} 30. Nc2 {[%emt 0:00:48]} Nb3 {[%emt 0:00:00]} 31. Re3 {[%emt 0:01:38]} Ra8 {[%emt 0:00:00]} 32. Rxa8 {[%emt 0:00:24]} Rxa8 {[%emt 0:00:00]} 33. Rxd3 {[%emt 0:00:21]} exd3 {[%emt 0:00:00]} 34. Na3 {[%emt 0:00:10]} Re8 {[%emt 0:00:00]} 35. Bf3 {[%emt 0:00:30]} Qf4 {[%emt 0:00:00]} 36. Bxd5 {[%emt 0:00:37]} Re2 {[%emt 0:00:00]} 37. Qf1 {[%emt 0:00:33]} Nd2 {[%emt 0:00:00]} 0-1

[Event "FRA-ch Teams Top 16-Bas 2022"]
[Site "Chartres"]
[Date "2022.06.18"]
[Round "10.26"]
[White "Eugene, Floryan"]
[Black "Iglesias, Yosha"]
[Result "0-1"]
[ECO "C42"]
[WhiteElo "2370"]
[BlackElo "2202"]
[Annotator "TA"]
[PlyCount "81"]
[EventDate "2022.06.16"]
[EventType "team-tourn"]
[EventCountry "FRA"]
[SourceTitle "playchess.com"]
[Source "ChessBase"]
[SourceQuality "1"]
[TimeControl "40/5400+30:1800+30"]

{[%evp 12,81,70,58,50,44,51,39,43,39,45,53,70,73,91,3,8,-10,29,0,0,0,0,-4,13,7,9,8,48,34,23,22,32,21,14,6,10,7,50,0,0,0,0,0,0,0,0,-26,-22,-19,-30,-30,-26,-448,-518,-514,-502,-526,-526,-454,-453,-569,-568,-566,-560,-536,-529,-474,-465,-460,-432,-344]} 1. e4 {[%emt 0:00:04]} e5 {[%emt 1:31:00]} 2. Nf3 {[%emt 0:00:14]} Nf6 {[%emt 0:00:30]} 3. Nxe5 {[%emt 0:03:12]} Nxe4 {[%emt 0:01:07]} 4. Qe2 {[%emt 1:29:00]} Qe7 {[%emt 0:00:11]} 5. Qxe4 {[%emt 0:00:36]} d6 {[%emt 1:31:06]} 6. d4 {[%emt 0:00:15]} dxe5 {[%emt 0:00:07]} 7. dxe5 {[%emt 0:00:15]} Nc6 {[%emt 0:00:23][%cal Bb8c6,Bc6e5,Be5f7,Bf7d6][%mdl 32] C42: Petroff Defence: 3 Nxe5 and unusual White 3rd moves.} 8. Nc3 {[%emt 0:11:01] aiming for Nd5. is recently more successful than 8.Bb5.} Qxe5 {[%emt 0:00:39]} 9. Qxe5+ {[%emt 0:00:06]} Nxe5 {[%emt 0:00:07] White is slightly better.} 10. Bf4 {[%emt 0:04:21]} Bd6 {[%emt 0:00:30][%cal Oe5f3]} 11. Bg3 {[%emt 1:14:09]} h5 {[%emt 0:01:50][%cal Bh7h5,Bh5h4,Bh4h3][%mdl 32]} 12. O-O-O {[%emt 0:03:38] [#] Bxe5 is the strong threat.} f6 $146 {[%emt 0:01:23]} ({Predecessor:} 12... Be6 13. Bb5+ Kf8 14. Rhe1 Nc4 15. Bxc4 Bxg3 16. Bxe6 Bf4+ 17. Kb1 fxe6 18. g3 Bd6 19. Rxe6 {1-0 (39) Bedic,N (1535)-Desnica,L (1663) Split 2021}) 13. f4 {[%emt 0:16:56]} (13. Nb5 $16) 13... Nf7 $11 {[%emt 0:06:48]} 14. Nb5 {[%emt 0:01:13][%cal Od1d6]} Kf8 {[%emt 0:07:47]} (14... h4 $5 {[%cal Rh4g3]} 15. Nxd6+ Nxd6 $11) 15. Bd3 {[%emt 0:04:17]} h4 {[%emt 0:08:29]} 16. Nxd6 {[%emt 0:00:31]} Nxd6 {[%emt 1:08:28]} 17. Bf2 {[%emt 0:50:11]} h3 {[%emt 0:00:22]} 18. g3 {[%emt 0:03:58]} Bg4 {[%emt 0:02:43]} 19. Rd2 $36 {[%emt 0:01:04][%mdl 2048] White has good play.} Rh5 {[%emt 0:04:47] Inhibits Bc5.} 20. Re1 {[%emt 0:01:45]} Ra5 {[%emt 0:00:53]} 21. a3 {[%emt 0:08:30]} Re8 {[%emt 0:04:33]} 22. Rxe8+ {[%emt 0:00:51]} Kxe8 {[%emt 0:01:55]} 23. Be1 {[%emt 0:10:49] Black must now prevent Be2.} Kf7 {[%emt 0:03:31]} 24. c4 {[%emt 0:02:07]} Rh5 {[%emt 0:00:37]} 25. b4 {[%emt 0:02:17]} (25. Bf2 $14) 25... Rh8 {[%emt 0:00:31]} 26. Bf2 {[%emt 0:01:01]} Re8 {[%emt 0:12:17]} 27. Bxa7 {[%emt 0:03:33]} Re1+ {[%emt 0:01:20]} 28. Kb2 {[%emt 0:00:25]} Bf3 {[%emt 0:06:03]} 29. Bb8 {[%emt 0:06:24]} f5 $1 {[%emt 0:03:55]} ({But not} 29... Ne4 30. Bxe4 Rxe4 31. Bxc7 $14) 30. Bxc7 {[%emt 0:01:47]} Ne4 {[%emt 0:00:04]} 31. Rc2 {[%emt 0:00:17]} Rh1 {[%emt 0:07:52] Strongly threatening ...Bd1.} 32. g4 $2 {[%emt 0:01:29][%mdl 8192] White does not recover from this.} (32. Bb6 $11) 32... Bd1 $19 {[%emt 0:03:57] Black is clearly winning.} 33. Bxe4 {[%emt 0:03:00]} fxe4 {[%emt 0:00:05][%mdl 4096] Endgame KRB-KRB} 34. f5 {[%emt 0:00:05]} e3 {[%emt 0:10:06]} 35. Rc3 {[%emt 0:00:52]} e2 {[%emt 0:00:09]} 36. Bg3 {[%emt 0:00:08] [#]} Rxh2 $3 {[%emt 0:00:50][%mdl 512]} 37. Be1 {[%emt 0:01:53]} Rh1 {[%emt 0:00:19]} 38. Bh4 {[%emt 0:00:07]} e1=Q {[%emt 0:04:19]} 39. Bxe1 {[%emt 0:00:01]} Rxe1 {[%emt 0:00:08]} 40. Rxh3 {[%emt 0:00:02]} Bxg4 {[%emt 0:00:08]} 41. Rg3 {[%emt 0:33:01] Weighted Error Value: White=0.38/Black=0.05 (flawless)} 0-1